[Event "POL-chT DMP Ekstraliga 2019"]
[Site "Katowice"]
[Date "2019.08.29"]
[Round "2.16"]
[White "Kaczmarek, Aleksander"]
[Black "Sadzikowski, Daniel"]
[Result "0-1"]
[ECO "B62"]
[WhiteElo "2389"]
[BlackElo "2502"]
[Annotator "ChessBase"]
[PlyCount "108"]
[EventDate "2019.08.28"]
[EventType "team-tourn"]
[EventCountry "POL"]
[SourceTitle "playchess.com"]
[Source "ChessBase"]
[SourceQuality "1"]
[TimeControl "40/5400+30:1800+30"]

1. e4 c5 {[%emt 0:00:00]} 2. Nf3 {[%emt 0:00:00]} Nc6 {[%emt 0:00:00]} 3. d4 {[%emt 0:00:00]} cxd4 {[%emt 0:00:00]} 4. Nxd4 {[%emt 0:00:00]} Nf6 {[%emt 0:00:00]} 5. Nc3 {[%emt 0:00:06]} d6 {[%emt 0:00:00]} 6. Bg5 {[%emt 0:00:10]} e6 {[%emt 0:00:00]} 7. Bb5 {[%emt 0:00:04]} Bd7 {[%emt 0:02:02]} 8. Bxc6 {[%emt 0:00:06]} bxc6 {[%emt 0:01:06]} 9. Qf3 {[%emt 0:00:06]} h6 {[%emt 0:07:20]} 10. Bh4 {[%emt 0:01:42]} Qa5 {[%emt 0:11:26]} 11. Bxf6 {[%emt 0:07:50]} gxf6 {[%emt 0:00:20]} 12. Qxf6 {[%emt 0:01:22]} Rg8 {[%emt 0:00:18]} 13. Nb3 {[%emt 0:02:53]} Qh5 {[%emt 0:03:47]} 14. Qf3 {[%emt 0:02:32]} Qxf3 {[%emt 0:00:30]} 15. gxf3 {[%emt 0:00:30]} Rb8 {[%emt 0:00:30]} 16. O-O-O {[%emt 0:00:30]} h5 {[%emt 0:00:30]} 17. Kb1 {[%emt 0:00:30]} Rg2 {[%emt 0:00:30]} 18. Rd3 {[%emt 0:00:30]} Kd8 {[%emt 0:00:30]} 19. Nd1 {[%emt 0:00:30]} Kc7 {[%emt 0:31:30]} 20. f4 {[%emt 0:24:18]} h4 {[%emt 0:00:30]} 21. Rf3 {[%emt 0:12:05]} d5 22. e5 c5 {[%emt 0:13:37]} 23. Ne3 {[%emt 0:00:43]} Rg7 24. Rh3 {[%emt 0:02:17]} d4 {[%emt 0:12:00]} 25. Nc4 Rg4 {[%emt 0:00:41]} 26. c3 {[%emt 0:02:17]} Bc6 {[%emt 0:01:09]} 27. f3 {[%emt 0:01:25]} Rxf4 {[%emt 0:01:48]} 28. cxd4 {[%emt 0:02:43]} cxd4 {[%emt 0:05:30]} 29. Rg1 {[%emt 0:03:39]} Be7 {[%emt 0:02:24]} 30. Ncd2 {[%emt 0:02:38]} Bd5 31. Rg4 {[%emt 0:00:03]} Rxg4 {[%emt 0:00:50]} 32. fxg4 {[%emt 0:00:30]} Rg8 {[%emt 0:00:55]} 33. Nxd4 {[%emt 0:02:27]} Rxg4 {[%emt 0:00:30]} 34. Rc3+ {[%emt 0:05:39]} Kb6 {[%emt 0:00:09]} 35. Rd3 {[%emt 0:00:30]} Rg1+ {[%emt 0:00:30]} 36. Kc2 {[%emt 0:00:30]} Rg2 {[%emt 0:00:30]} 37. Kc3 {[%emt 0:00:30]} Rxh2 {[%emt 0:00:30]} 38. Nc4+ {[%emt 0:00:30]} Bxc4 {[%emt 0:00:30]} 39. Kxc4 {[%emt 0:00:30]} Rxb2 {[%emt 0:00:30]} 40. Rf3 {[%emt 0:00:30]} Bc5 {[%emt 0:00:00]} 41. a3 {[%emt 0:07:39]} Bxd4 {[%emt 0:08:54]} 42. Kxd4 {[%emt 0:00:30]} Rd2+ {[%emt 0:00:30]} 43. Ke3 {[%emt 0:00:30]} Rd5 {[%emt 0:00:30]} 44. Ke4 {[%emt 0:00:30]} Ra5 {[%emt 0:00:30]} 45. Rxf7 {[%emt 0:00:30]} Ra4+ {[%emt 0:00:30]} 46. Kf3 {[%emt 0:00:30]} Rxa3+ {[%emt 0:00:30]} 47. Kg4 {[%emt 0:00:30]} Ra4+ {[%emt 0:00:30]} 48. Kg5 {[%emt 0:00:30]} Re4 {[%emt 0:00:30]} 49. Kf6 {[%emt 0:00:30]} Rf4+ {[%emt 0:00:30]} 50. Kxe6 {[%emt 0:00:30]} Rxf7 {[%emt 0:00:30]} 51. Kxf7 {[%emt 0:00:30]} h3 {[%emt 0:00:30]} 52. e6 {[%emt 0:00:30]} h2 {[%emt 0:00:30]} 53. e7 {[%emt 0:00:30]} h1=Q {[%emt 0:00:30]} 54. e8=Q {[%emt 0:00:30]} Qh5+ {[%emt 0:00:30]} 0-1

[Event "POL-chT DMP Ekstraliga 2019"]
[Site "Katowice"]
[Date "2019.08.29"]
[Round "2.17"]
[White "Wieczorek, Oskar"]
[Black "Mikrut, Dariusz"]
[Result "1/2-1/2"]
[ECO "E71"]
[WhiteElo "2497"]
[BlackElo "2375"]
[Annotator "ChessBase"]
[PlyCount "28"]
[EventDate "2019.08.28"]
[EventType "team-tourn"]
[EventCountry "POL"]
[SourceTitle "playchess.com"]
[Source "ChessBase"]
[SourceQuality "1"]
[TimeControl "40/5400+30:1800+30"]

1. c4 {[%emt 0:00:00]} Nf6 {[%emt 0:00:38]} 2. Nc3 {[%emt 0:00:00]} g6 {[%emt 0:00:08]} 3. e4 {[%emt 0:00:00]} d6 {[%emt 0:00:06]} 4. d4 {[%emt 0:00:00]} Bg7 {[%emt 0:00:07]} 5. h3 {[%emt 0:00:00]} O-O {[%emt 0:00:39]} 6. Be3 {[%emt 0:00:00]} Na6 {[%emt 0:00:21]} 7. Nf3 {[%emt 0:00:13]} Qe8 {[%emt 0:00:36]} 8. g4 {[%emt 0:01:56]} c6 {[%emt 0:00:19]} 9. Be2 {[%emt 0:04:07]} Nc7 {[%emt 0:02:08]} 10. a4 {[%emt 0:17:51]} d5 11. e5 {[%emt 0:15:25]} Ne4 {[%emt 0:08:53]} 12. Nxe4 {[%emt 0:00:13]} dxe4 {[%emt 0:00:05]} 13. Nd2 {[%emt 0:00:07]} f5 {[%emt 0:04:26]} 14. gxf5 {[%emt 0:00:34]} Bxf5 {[%emt 0:33:52]} 1/2-1/2

[Event "POL-chT DMP Ekstraliga 2019"]
[Site "Katowice"]
[Date "2019.08.29"]
[Round "2.18"]
[White "Leks, Maria"]
[Black "Zawadzka, Jolanta"]
[Result "0-1"]
[ECO "D02"]
[WhiteElo "2129"]
[BlackElo "2407"]
[Annotator "NA"]
[PlyCount "64"]
[EventDate "2019.08.28"]
[EventType "team-tourn"]
[EventCountry "POL"]
[SourceTitle "playchess.com"]
[Source "ChessBase"]
[SourceQuality "1"]
[TimeControl "40/5400+30:1800+30"]

1. d4 {[%emt 0:00:00]} d5 {[%emt 0:00:00]} 2. Bf4 {[%emt 0:00:00]} Nf6 {[%emt 0:00:31]} 3. Nf3 {[%emt 0:00:05]} c5 {[%emt 0:00:46]} 4. e3 {[%emt 0:00:43]} Nc6 {[%emt 0:00:39]} 5. c3 {[%emt 0:00:32]} Qb6 {[%emt 0:02:07]} 6. Qb3 {[%emt 0:01:05]} c4 {[%emt 0:02:09]} 7. Qxb6 {[%emt 0:00:27]} axb6 {[%emt 0:00:05]} 8. h3 {[%emt 0:12:03]} b5 {[%emt 0:09:30]} 9. Ne5 b4 {[%emt 0:16:58]} 10. Nxc6 {[%emt 0:07:55]} bxc6 {[%emt 0:00:04]} 11. a4 {[%emt 0:08:25]} e6 {[%emt 0:07:46]} 12. Nd2 {[%emt 0:02:22]} Ba6 {[%emt 0:01:32]} 13. Be2 {[%emt 0:00:59]} Be7 {[%emt 0:01:06]} 14. O-O {[%emt 0:00:30]} O-O {[%emt 0:02:29]} 15. g4 {[%emt 0:07:32]} Ra7 {[%emt 0:04:51]} 16. g5 {[%emt 0:22:22]} Nd7 {[%emt 0:00:17]} 17. e4 {[%emt 0:00:15]} Rfa8 {[%emt 0:04:30]} 18. exd5 {[%emt 0:01:54]} cxd5 {[%emt 0:00:59]} 19. Bf3 {[%emt 0:17:07]} Kf8 {[%emt 0:11:41]} 20. Rfe1 {[%emt 0:12:47]} Bb5 {[%emt 0:02:25]} 21. Kg2 {[%emt 0:01:31]} Rxa4 {[%emt 0:01:14]} 22. Rab1 {[%emt 0:01:20]} Ra2 {[%emt 0:02:09]} 23. Nf1 {[%emt 0:00:57]} Ba4 {[%emt 0:02:38]} 24. Ne3 {[%emt 0:00:15]} Bb3 {[%emt 0:01:15]} 25. Bxd5 {[%emt 0:00:19]} exd5 {[%emt 0:10:26]} 26. Nxd5 {[%emt 0:00:04]} bxc3 {[%emt 0:00:42]} 27. Nxe7 {[%emt 0:00:43]} cxb2 {[%emt 0:03:21]} 28. Bd6 {[%emt 0:00:16]} f6 {[%emt 0:00:24]} 29. Nf5+ {[%emt 0:01:22]} Kg8 {[%emt 0:00:40]} 30. Re2 {[%emt 0:00:32]} c3 {[%emt 0:00:45]} 31. Rbe1 {[%emt 0:00:22]} Bf7 {[%emt 0:03:48]} 32. Ng3 {[%emt 0:00:41]} Ra1 {[%emt 0:00:33]} 0-1

[Event "POL-chT DMP Ekstraliga 2019"]
[Site "Katowice"]
[Date "2019.08.29"]
[Round "2.23"]
[White "Miton, Kamil"]
[Black "Kantans, Toms"]
[Result "1-0"]
[ECO "A05"]
[WhiteElo "2589"]
[BlackElo "2490"]
[Annotator "ChessBase"]
[PlyCount "79"]
[EventDate "2019.08.28"]
[EventType "team-tourn"]
[EventCountry "POL"]
[SourceTitle "playchess.com"]
[Source "ChessBase"]
[SourceQuality "1"]
[TimeControl "40/5400+30:1800+30"]

1. Nf3 {[%emt 0:00:00]} Nf6 {[%emt 0:00:11]} 2. c4 {[%emt 0:00:00]} g6 {[%emt 0:01:01]} 3. Nc3 {[%emt 0:00:41]} d5 {[%emt 0:00:07]} 4. cxd5 {[%emt 0:00:19]} Nxd5 {[%emt 0:00:04]} 5. Qb3 {[%emt 0:00:40]} Nb6 {[%emt 0:03:45]} 6. d4 {[%emt 0:00:56]} Be6 {[%emt 0:03:00]} 7. Qc2 {[%emt 0:02:06]} Nc6 {[%emt 0:12:30]} 8. e4 f5 {[%emt 0:29:47]} 9. Bb5 {[%emt 0:19:15]} fxe4 {[%emt 0:09:51]} 10. Ne5 {[%emt 0:10:31]} Bd5 {[%emt 0:05:33]} 11. Nxe4 {[%emt 0:10:36]} Bg7 {[%emt 0:08:08]} 12. Nxc6 {[%emt 0:00:38]} bxc6 {[%emt 0:00:27]} 13. Bxc6+ {[%emt 0:00:07]} Bxc6 {[%emt 0:00:08]} 14. Qxc6+ {[%emt 0:00:05]} Qd7 {[%emt 0:00:22]} 15. Qxd7+ {[%emt 0:00:15]} Nxd7 {[%emt 0:00:38]} 16. Be3 {[%emt 0:01:37]} Rb8 {[%emt 0:08:10]} 17. b3 {[%emt 0:10:21]} Rb4 {[%emt 0:05:47]} 18. Rc1 {[%emt 0:02:23]} Bxd4 {[%emt 0:03:58]} 19. Rxc7 {[%emt 0:02:08]} Kd8 {[%emt 0:03:09]} 20. Bd2 {[%emt 0:03:22]} Kxc7 {[%emt 0:00:25]} 21. Bxb4 {[%emt 0:00:06]} Nf6 {[%emt 0:01:06]} 22. Ng5 {[%emt 0:03:54]} e5 {[%emt 0:00:43]} 23. Ke2 {[%emt 0:01:14]} Re8 {[%emt 0:02:05]} 24. Rc1+ {[%emt 0:01:47]} Kb6 {[%emt 0:00:01]} 25. Bd2 {[%emt 0:03:27]} Re7 {[%emt 0:00:59]} 26. Nf3 {[%emt 0:01:10]} Ne4 {[%emt 0:00:17]} 27. Rc4 {[%emt 0:05:21]} Nd6 {[%emt 0:00:45]} 28. Rb4+ {[%emt 0:00:36]} Kc6 {[%emt 0:00:30]} 29. Nxd4+ {[%emt 0:02:14]} exd4+ {[%emt 0:00:02]} 30. Kd3 {[%emt 0:00:35]} Ne4 {[%emt 0:00:16]} 31. Rc4+ {[%emt 0:01:04]} Kb5 {[%emt 0:00:58]} 32. f3 {[%emt 0:02:17]} Nf2+ {[%emt 0:00:41]} 33. Kxd4 {[%emt 0:00:18]} Re2 {[%emt 0:00:24]} 34. a4+ {[%emt 0:00:20]} Ka6 {[%emt 0:00:14]} 35. Bf4 {[%emt 0:00:51]} Nd1 {[%emt 0:00:56]} 36. Rc1 {[%emt 0:01:04]} g5 {[%emt 0:00:15]} 37. Bxg5 {[%emt 0:01:30]} Rxg2 {[%emt 0:00:05]} 38. Rxd1 {[%emt 0:00:33]} Rxg5 {[%emt 0:00:03]} 39. f4 {[%emt 0:00:28]} Rg2 {[%emt 0:00:04]} 40. Rf1 {[%emt 0:00:00]} 1-0

[Event "POL-chT DMP Ekstraliga 2019"]
[Site "Katowice"]
[Date "2019.08.29"]
[Round "2.24"]
[White "Warakomska, Anna"]
[Black "Socko, Monika"]
[Result "1-0"]
[ECO "B38"]
[WhiteElo "2241"]
[BlackElo "2436"]
[Annotator "NA"]
[PlyCount "81"]
[EventDate "2019.08.28"]
[EventType "team-tourn"]
[EventCountry "POL"]
[SourceTitle "playchess.com"]
[Source "ChessBase"]
[SourceQuality "1"]
[TimeControl "40/5400+30:1800+30"]

1. e4 {[%emt 0:00:00]} c5 {[%emt 0:00:00]} 2. Nf3 {[%emt 0:00:00]} Nc6 {[%emt 0:00:00]} 3. d4 {[%emt 0:02:44]} cxd4 {[%emt 0:00:00]} 4. Nxd4 {[%emt 0:00:05]} g6 {[%emt 0:00:00]} 5. c4 {[%emt 0:00:58]} Bg7 {[%emt 0:00:00]} 6. Be3 {[%emt 0:00:21]} Nf6 {[%emt 0:00:38]} 7. Nc3 {[%emt 0:00:38]} O-O {[%emt 0:00:19]} 8. Be2 {[%emt 0:01:21]} d6 {[%emt 0:00:35]} 9. f3 {[%emt 0:02:05]} Bd7 {[%emt 0:00:08]} 10. Qd2 {[%emt 0:00:51]} Nxd4 {[%emt 0:01:45]} 11. Bxd4 {[%emt 0:00:09]} Bc6 {[%emt 0:01:46]} 12. O-O-O {[%emt 0:07:25]} a6 {[%emt 0:08:24]} 13. g4 {[%emt 0:03:06]} b5 14. Kb1 {[%emt 0:03:13]} Rb8 {[%emt 0:25:17]} 15. h4 {[%emt 0:04:15]} e6 {[%emt 0:13:04]} 16. g5 {[%emt 0:16:50]} Ne8 {[%emt 0:17:58]} 17. Bxg7 {[%emt 0:00:33]} Kxg7 {[%emt 0:00:10]} 18. e5 {[%emt 0:02:41]} bxc4 {[%emt 0:07:42]} 19. exd6 {[%emt 0:04:07]} Qa5 {[%emt 0:06:12]} 20. h5 {[%emt 0:18:25]} Qf5+ {[%emt 0:09:53]} 21. Ka1 {[%emt 0:01:28]} Rd8 {[%emt 0:01:14]} 22. Qd4+ {[%emt 0:05:40]} e5 {[%emt 0:00:03]} 23. Qxc4 {[%emt 0:00:44]} Bb5 {[%emt 0:01:20]} 24. Nxb5 {[%emt 0:03:05]} axb5 {[%emt 0:00:01]} 25. Qc5 {[%emt 0:00:58]} Qxg5 {[%emt 0:01:23]} 26. hxg6 {[%emt 0:04:02]} hxg6 {[%emt 0:00:40]} 27. Bxb5 {[%emt 0:01:07]} Nf6 {[%emt 0:02:22]} 28. Rhe1 {[%emt 0:00:33]} Rh8 {[%emt 0:00:09]} 29. d7 {[%emt 0:03:43]} Qg2 {[%emt 0:01:03]} 30. Bc6 {[%emt 0:04:45]} Rh5 {[%emt 0:01:47]} 31. Qe7 {[%emt 0:05:19]} Rb8 {[%emt 0:00:06]} 32. Rb1 {[%emt 0:00:17]} Rhh8 {[%emt 0:00:03]} 33. Qxe5 {[%emt 0:00:15]} Qf2 {[%emt 0:01:13]} 34. Red1 {[%emt 0:00:54]} Qb6 {[%emt 0:00:57]} 35. Rd6 {[%emt 0:01:39]} Qd8 {[%emt 0:00:01]} 36. a3 {[%emt 0:00:40]} Rh5 {[%emt 0:00:37]} 37. Qd4 {[%emt 0:00:27]} Rh2 {[%emt 0:00:10]} 38. Qf4 {[%emt 0:01:44]} Rh8 {[%emt 0:00:19]} 39. Re1 {[%emt 0:00:42]} Nh5 {[%emt 0:01:35]} 40. Qd4+ {[%emt 0:00:00]} Kh6 {[%emt 0:00:00]} 41. Re8 {[%emt 0:00:52]} 1-0

[Event "POL-chT DMP Ekstraliga 2019"]
[Site "Katowice"]
[Date "2019.08.29"]
[Round "2.25"]
[White "Huschenbeth, Niclas"]
[Black "Kempinski, Robert"]
[Result "0-1"]
[ECO "B32"]
[WhiteElo "2620"]
[BlackElo "2579"]
[Annotator "RC"]
[PlyCount "72"]
[EventDate "2019.08.28"]
[EventType "team-tourn"]
[EventCountry "POL"]
[SourceTitle "playchess.com"]
[Source "ChessBase"]
[SourceQuality "1"]
[TimeControl "40/5400+30:1800+30"]

1. e4 {[%emt 0:00:00]} c5 {[%emt 0:00:00]} 2. Nf3 {[%emt 0:00:00]} Nc6 {[%emt 0:00:00]} 3. d4 {[%emt 0:00:00]} cxd4 {[%emt 0:00:06]} 4. Nxd4 {[%emt 0:00:00]} e5 {[%emt 0:00:17]} 5. Nb5 {[%emt 0:00:00]} d6 {[%emt 0:00:20]} 6. N1c3 {[%emt 0:00:00]} a6 {[%emt 0:00:17]} 7. Na3 {[%emt 0:00:00]} Be7 {[%emt 0:00:19]} 8. Be3 {[%emt 0:00:16]} Nf6 {[%emt 0:00:16]} 9. Nc4 {[%emt 0:00:46]} Be6 {[%emt 0:00:13]} 10. Nd5 {[%emt 0:24:00]} O-O 11. Nxe7+ {[%emt 0:14:03]} Nxe7 {[%emt 0:06:05]} 12. Qxd6 {[%emt 0:00:24]} Bxc4 {[%emt 0:00:22]} 13. Qxd8 {[%emt 0:00:02]} Rfxd8 {[%emt 0:00:14]} 14. Bxc4 {[%emt 0:00:05]} Nxe4 {[%emt 0:00:12]} 15. Bd3 {[%emt 0:05:19]} Nf6 {[%emt 0:14:42]} 16. O-O-O {[%emt 0:01:31]} Ned5 {[%emt 0:00:28]} 17. Bg5 {[%emt 0:04:18]} h6 {[%emt 0:08:46]} 18. Bxf6 {[%emt 0:00:06]} Nxf6 {[%emt 0:00:18]} 19. Rhe1 {[%emt 0:00:44]} Re8 {[%emt 0:01:31]} 20. Bf5 {[%emt 0:04:36]} g6 {[%emt 0:03:10]} 21. Rd6 {[%emt 0:01:06]} Kg7 {[%emt 0:00:20]} 22. Bh3 {[%emt 0:02:41]} e4 {[%emt 0:09:24]} 23. Rb6 {[%emt 0:04:16]} Rab8 {[%emt 0:02:22]} 24. c4 {[%emt 0:05:07]} Re7 {[%emt 0:08:16]} 25. b3 {[%emt 0:09:40]} h5 {[%emt 0:05:07]} 26. Rd1 {[%emt 0:10:37]} Ng4 {[%emt 0:05:06]} 27. Bxg4 {[%emt 0:00:07]} hxg4 {[%emt 0:00:11]} 28. Kd2 {[%emt 0:05:57]} Rh8 {[%emt 0:02:31]} 29. Ke3 {[%emt 0:00:15]} Rxh2 {[%emt 0:00:51]} 30. g3 {[%emt 0:00:02]} Rh5 {[%emt 0:01:11]} 31. Rd5 {[%emt 0:03:00]} Rh1 {[%emt 0:00:32]} 32. a4 {[%emt 0:00:32]} Rc1 {[%emt 0:02:51]} 33. Kd4 {[%emt 0:05:33]} e3 {[%emt 0:05:55]} 34. fxe3 {[%emt 0:00:02]} Rg1 {[%emt 0:00:09]} 35. Rbd6 {[%emt 0:01:51]} Rxg3 {[%emt 0:01:00]} 36. Rg5 {[%emt 0:00:13]} f6 {[%emt 0:01:50]} 0-1

[Event "POL-chT DMP Ekstraliga 2019"]
[Site "Katowice"]
[Date "2019.08.29"]
[Round "2.26"]
[White "Shevchenko, Kirill"]
[Black "Hracek, Zbynek"]
[Result "1/2-1/2"]
[ECO "E34"]
[WhiteElo "2556"]
[BlackElo "2572"]
[Annotator "ChessBase"]
[PlyCount "63"]
[EventDate "2019.08.28"]
[EventType "team-tourn"]
[EventCountry "POL"]
[SourceTitle "playchess.com"]
[Source "ChessBase"]
[SourceQuality "1"]
[TimeControl "40/5400+30:1800+30"]

1. d4 Nf6 {[%emt 0:00:00]} 2. c4 {[%emt 0:00:00]} e6 {[%emt 0:00:00]} 3. Nc3 {[%emt 0:00:00]} Bb4 {[%emt 0:01:06]} 4. Qc2 {[%emt 0:00:00]} d5 {[%emt 0:02:16]} 5. Bg5 {[%emt 0:01:01]} h6 {[%emt 0:00:30]} 6. Bh4 {[%emt 0:00:30]} c5 {[%emt 0:00:30]} 7. cxd5 {[%emt 0:00:30]} exd5 {[%emt 0:03:37]} 8. dxc5 g5 {[%emt 0:02:06]} 9. Bg3 {[%emt 0:03:00]} Ne4 {[%emt 0:00:28]} 10. e3 {[%emt 0:02:36]} Qa5 {[%emt 0:03:30]} 11. Rc1 {[%emt 0:00:30]} Bf5 {[%emt 0:03:45]} 12. Bxb8 {[%emt 0:18:33]} Rxb8 {[%emt 0:00:30]} 13. Bd3 {[%emt 0:00:30]} O-O {[%emt 0:00:30]} 14. Nge2 {[%emt 0:00:30]} Rbc8 {[%emt 0:00:30]} 15. O-O {[%emt 0:00:30]} Rxc5 {[%emt 0:00:30]} 16. Nd4 {[%emt 0:00:30]} Nxc3 {[%emt 0:00:30]} 17. bxc3 {[%emt 0:00:30]} Rxc3 {[%emt 1:12:19]} 18. Nxf5 {[%emt 1:01:35]} Rxc2 {[%emt 0:00:30]} 19. Nxh6+ {[%emt 0:00:30]} Kg7 {[%emt 0:02:52]} 20. Nf5+ {[%emt 0:00:34]} Kf6 {[%emt 0:00:02]} 21. Rxc2 {[%emt 0:00:27]} Qa3 {[%emt 0:01:09]} 22. Rd1 {[%emt 0:00:30]} g4 {[%emt 0:00:30]} 23. Nd4 {[%emt 0:00:30]} a6 {[%emt 0:00:30]} 24. Be2 {[%emt 0:00:30]} Rg8 {[%emt 0:00:30]} 25. Nb3 {[%emt 0:00:30]} Rg5 {[%emt 0:00:30]} 26. Rd3 {[%emt 0:00:30]} Bd6 {[%emt 0:00:30]} 27. g3 {[%emt 0:00:30]} Qb4 {[%emt 0:00:30]} 28. Nd2 {[%emt 0:00:30]} Qa4 {[%emt 0:00:30]} 29. Bd1 {[%emt 0:00:30]} Qb5 30. Be2 Qa4 31. Bd1 Qb5 32. Be2 1/2-1/2

[Event "POL-chT DMP Ekstraliga 2019"]
[Site "Katowice"]
[Date "2019.08.29"]
[Round "2.27"]
[White "Markowski, Tomasz"]
[Black "Kriebel, Tadeas"]
[Result "1-0"]
[ECO "D05"]
[WhiteElo "2537"]
[BlackElo "2531"]
[Annotator "ChessBase"]
[PlyCount "139"]
[EventDate "2019.08.28"]
[EventType "team-tourn"]
[EventCountry "POL"]
[SourceTitle "playchess.com"]
[Source "ChessBase"]
[SourceQuality "1"]
[TimeControl "40/5400+30:1800+30"]

1. d4 {[%emt 0:00:00]} Nf6 {[%emt 0:00:00]} 2. Nf3 {[%emt 0:00:00]} e6 {[%emt 0:00:00]} 3. e3 {[%emt 0:00:00]} d5 {[%emt 0:00:19]} 4. Bd3 {[%emt 0:00:00]} b6 {[%emt 0:00:34]} 5. O-O {[%emt 0:00:07]} Bb7 {[%emt 0:00:06]} 6. b3 {[%emt 0:00:13]} Bd6 {[%emt 0:00:20]} 7. c4 {[%emt 0:00:32]} Nbd7 {[%emt 0:01:22]} 8. cxd5 {[%emt 0:00:13]} exd5 {[%emt 0:00:04]} 9. Ba3 {[%emt 0:00:05]} Bxa3 {[%emt 0:01:17]} 10. Nxa3 {[%emt 0:00:06]} O-O {[%emt 0:00:10]} 11. Rc1 {[%emt 0:00:14]} c6 {[%emt 0:05:29]} 12. Nb1 {[%emt 0:00:45]} Qe7 {[%emt 0:00:38]} 13. Nc3 {[%emt 0:00:06]} Ne4 {[%emt 0:05:39]} 14. Qc2 {[%emt 0:00:42]} f5 {[%emt 0:02:50]} 15. Qb2 {[%emt 0:01:03]} Qd6 {[%emt 0:07:39]} 16. b4 {[%emt 0:01:46]} b5 {[%emt 0:04:15]} 17. a4 {[%emt 0:04:36]} a6 18. axb5 {[%emt 0:06:10]} axb5 {[%emt 0:02:11]} 19. Ra1 {[%emt 0:00:42]} Rae8 {[%emt 0:04:08]} 20. Ne2 {[%emt 0:04:37]} h6 {[%emt 0:15:56]} 21. Ra7 {[%emt 0:03:44]} Bc8 {[%emt 0:07:37]} 22. Rc1 {[%emt 0:03:13]} Nb6 {[%emt 0:15:33]} 23. Ne5 {[%emt 0:04:23]} Nc4 {[%emt 0:00:07]} 24. Bxc4 {[%emt 0:00:43]} dxc4 {[%emt 0:00:46]} 25. f3 {[%emt 0:06:28]} Nf6 {[%emt 0:00:45]} 26. Nf4 {[%emt 0:01:27]} Nd7 {[%emt 0:07:05]} 27. Nfg6 {[%emt 0:07:18]} Nxe5 {[%emt 0:00:05]} 28. Nxe5 {[%emt 0:00:05]} f4 {[%emt 0:00:26]} 29. e4 {[%emt 0:01:30]} Rd8 {[%emt 0:00:06]} 30. h4 {[%emt 0:05:01]} Rfe8 {[%emt 0:10:22]} 31. Kh2 {[%emt 0:06:38]} Qxd4 {[%emt 0:02:35]} 32. Qxd4 {[%emt 0:01:22]} Rxd4 {[%emt 0:00:04]} 33. Nxc6 {[%emt 0:00:11]} Rd7 {[%emt 0:03:23]} 34. Ra5 {[%emt 0:03:41]} Rb7 {[%emt 0:01:14]} 35. Rd1 {[%emt 0:02:48]} Bd7 {[%emt 0:00:58]} 36. Rd6 {[%emt 0:05:02]} Bxc6 {[%emt 0:00:33]} 37. Rxc6 {[%emt 0:00:05]} Re5 {[%emt 0:00:06]} 38. Kh3 {[%emt 0:10:10]} Kh7 {[%emt 0:02:57]} 39. Kg4 {[%emt 0:11:09]} Rf7 {[%emt 0:00:01]} 40. Rxc4 {[%emt 0:00:00]} h5+ {[%emt 0:00:00]} 41. Kh3 {[%emt 0:02:51]} Rd7 {[%emt 0:14:51]} 42. Rc1 {[%emt 0:06:31]} g5 {[%emt 0:08:13]} 43. hxg5 {[%emt 0:00:44]} Rxg5 {[%emt 0:00:04]} 44. Rc2 {[%emt 0:05:25]} Rdg7 {[%emt 0:03:40]} 45. Ra3 {[%emt 0:01:42]} Rg3+ {[%emt 0:01:23]} 46. Kh2 {[%emt 0:00:30]} h4 {[%emt 0:00:31]} 47. Rac3 {[%emt 0:00:20]} h3 {[%emt 0:01:11]} 48. gxh3 {[%emt 0:00:38]} R7g6 {[%emt 0:02:46]} 49. Rd2 {[%emt 0:03:28]} Kh6 {[%emt 0:00:15]} 50. Rf2 {[%emt 0:02:33]} Kg5 {[%emt 0:03:35]} 51. Rc8 {[%emt 0:01:32]} Rh6 {[%emt 0:00:43]} 52. Rg8+ {[%emt 0:01:04]} Kh4 {[%emt 0:00:01]} 53. Rg4+ {[%emt 0:00:37]} Rxg4 {[%emt 0:00:01]} 54. hxg4 {[%emt 0:00:06]} Rc6 {[%emt 0:00:23]} 55. Re2 {[%emt 0:01:13]} Re6 {[%emt 0:01:33]} 56. Kg2 {[%emt 0:01:10]} Re7 {[%emt 0:00:13]} 57. Re1 {[%emt 0:00:50]} Rc7 {[%emt 0:00:06]} 58. Rh1+ {[%emt 0:01:32]} Kg5 {[%emt 0:00:03]} 59. Rh5+ {[%emt 0:00:06]} Kg6 {[%emt 0:00:05]} 60. Rf5 {[%emt 0:03:28]} Rc2+ {[%emt 0:00:45]} 61. Kh3 {[%emt 0:00:18]} Rb2 {[%emt 0:00:12]} 62. g5 {[%emt 0:01:00]} Rxb4 {[%emt 0:01:22]} 63. Kg4 {[%emt 0:00:11]} Rb1 {[%emt 0:00:15]} 64. Kxf4 {[%emt 0:00:37]} b4 {[%emt 0:00:09]} 65. Rf6+ {[%emt 0:00:16]} Kg7 {[%emt 0:00:05]} 66. Rb6 {[%emt 0:00:11]} b3 {[%emt 0:00:21]} 67. Kf5 {[%emt 0:00:13]} b2 {[%emt 0:00:07]} 68. f4 {[%emt 0:00:15]} Kf7 {[%emt 0:00:07]} 69. Rb7+ {[%emt 0:00:22]} Kg8 {[%emt 0:00:05]} 70. g6 {[%emt 0:01:01]} 1-0

[Event "POL-chT DMP Ekstraliga 2019"]
[Site "Katowice"]
[Date "2019.08.29"]
[Round "2.28"]
[White "Simacek, Pavel"]
[Black "Nasuta, Grzegorz"]
[Result "1/2-1/2"]
[ECO "C78"]
[WhiteElo "2479"]
[BlackElo "2533"]
[Annotator "ChessBase"]
[PlyCount "77"]
[EventDate "2019.08.28"]
[EventType "team-tourn"]
[EventCountry "POL"]
[SourceTitle "playchess.com"]
[Source "ChessBase"]
[SourceQuality "1"]
[TimeControl "40/5400+30:1800+30"]

1. e4 {[%emt 0:00:00]} e5 {[%emt 0:00:00]} 2. Nf3 {[%emt 0:00:00]} Nc6 {[%emt 0:00:00]} 3. Bb5 {[%emt 0:00:16]} a6 {[%emt 0:00:00]} 4. Ba4 {[%emt 0:00:05]} Nf6 {[%emt 0:00:00]} 5. O-O {[%emt 0:00:26]} b5 {[%emt 0:00:07]} 6. Bb3 {[%emt 0:00:08]} Bc5 {[%emt 0:00:06]} 7. d3 {[%emt 0:01:42]} d6 {[%emt 0:01:16]} 8. Nc3 {[%emt 0:01:03]} h6 {[%emt 0:02:18]} 9. Nd5 {[%emt 0:00:30]} O-O {[%emt 0:05:41]} 10. c3 {[%emt 0:00:30]} Rb8 {[%emt 0:08:03]} 11. Be3 Nxd5 {[%emt 0:12:06]} 12. Bxd5 {[%emt 0:13:28]} Bxe3 {[%emt 0:00:09]} 13. fxe3 {[%emt 0:00:11]} Ne7 {[%emt 0:00:09]} 14. Bb3 {[%emt 0:00:04]} c5 {[%emt 0:20:35]} 15. Nh4 {[%emt 0:06:18]} d5 {[%emt 0:11:48]} 16. Qh5 {[%emt 0:07:42]} c4 {[%emt 0:04:08]} 17. Bc2 {[%emt 0:01:28]} cxd3 {[%emt 0:08:50]} 18. Bxd3 {[%emt 0:00:18]} d4 {[%emt 0:00:04]} 19. Rad1 {[%emt 0:07:57]} Nc6 {[%emt 0:09:01]} 20. Nf3 {[%emt 0:36:19]} Qb6 {[%emt 0:04:44]} 21. Nxe5 {[%emt 0:11:30]} Nxe5 {[%emt 0:04:26]} 22. Qxe5 {[%emt 0:00:05]} dxc3 {[%emt 0:00:04]} 23. Qxc3 {[%emt 0:01:58]} Qxe3+ {[%emt 0:00:06]} 24. Kh1 {[%emt 0:00:03]} b4 {[%emt 0:00:19]} 25. Qe1 {[%emt 0:04:11]} Qxe1 {[%emt 0:01:03]} 26. Rfxe1 {[%emt 0:00:04]} Be6 {[%emt 0:01:00]} 27. Bxa6 {[%emt 0:00:41]} Bxa2 {[%emt 0:02:20]} 28. Rd4 {[%emt 0:01:44]} Rfd8 {[%emt 0:01:16]} 29. Red1 {[%emt 0:00:07]} Rxd4 {[%emt 0:00:44]} 30. Rxd4 {[%emt 0:00:04]} Be6 {[%emt 0:02:51]} 31. Kg1 {[%emt 0:00:31]} b3 {[%emt 0:00:38]} 32. Kf2 {[%emt 0:01:24]} Ra8 {[%emt 0:00:53]} 33. Rd6 {[%emt 0:00:37]} Kf8 {[%emt 0:00:21]} 34. Ke3 {[%emt 0:00:05]} Ke7 {[%emt 0:00:18]} 35. e5 {[%emt 0:00:47]} Rb8 {[%emt 0:01:20]} 36. Rd4 {[%emt 0:01:18]} Ra8 {[%emt 0:00:32]} 37. Rd6 {[%emt 0:02:06]} Rb8 {[%emt 0:00:36]} 38. Rd4 {[%emt 0:00:32]} Ra8 {[%emt 0:00:28]} 39. Ke4 1/2-1/2